bitfinex/quotes_ETHUSD_20241103
["timestamp","ask_amount","ask_price","bid_price","bid_amount"]
[1730596148328,1.63263604,2485.0,2484.4,0.8057]
[1730596148528,1.63263604,2485.0,2484.6,0.8057]
[1730596151050,1.63263604,2484.8,2484.6,0.8057]
[1730596152412,1.63263604,2484.8,2484.5,0.1257716]
[1730596152608,1.63263604,2484.8,2484.4,0.8057]
[1730596153584,1.63263604,2484.8,2484.5,0.12577881]
[1730596153882,1.63263604,2484.8,2484.4,0.8057]
[1730596154184,1.63263604,2484.8,2484.5,0.12577922]
[1730596154357,1.63263604,2484.8,2484.6,0.12577345]
[1730596154553,1.63263604,2484.8,2484.4,1.00693457]
[1730596154888,1.63263604,2485.0,2484.6,0.8057]
[1730596155039,1.63263604,2485.0,2484.7,0.12577121]
[1730596155246,1.63263604,2485.0,2484.6,0.8057]
[1730596155247,1.63263604,2485.0,2484.8,0.12577121]
[1730596155441,1.63263604,2485.0,2484.7,0.20123457]
[1730596155659,1.63263604,2485.0,2484.6,0.8057]
[1730596155890,1.63263604,2485.0,2484.7,0.20121712]
[1730596156053,1.63263604,2485.0,2484.8,0.1257607]
[1730596156255,1.63263604,2485.0,2484.6,0.8057]
[1730596156443,1.63263604,2484.7,2484.4,1.11085304]
[1730596156644,1.63263604,2484.7,2484.5,0.32702653]
[1730596156948,1.63263604,2484.7,2484.6,0.12578055]
[1730596160895,1.63263604,2484.7,2484.2,1.11085304]
[1730596161089,1.63263604,2484.7,2484.3,0.32703174]
[1730596161404,1.63263604,2484.7,2484.4,0.32703174]
[1730596161689,1.63263604,2484.7,2484.5,0.12578131]
[1730596161890,1.63263604,2484.7,2484.6,0.12578131]
[1730596162472,1.63263604,2484.7,2484.2,0.8099]
[1730596162776,1.63263604,2484.7,2484.3,0.92921871]
[1730596162963,1.63263604,2484.7,2484.2,1.20550975]
[1730596162964,1.63263604,2484.7,2484.4,0.32703126]
[1730596163163,1.63263604,2484.7,2484.5,0.12578125]
[1730596163375,1.63263604,2484.7,2484.3,0.20125129]
[1730596163570,1.63263604,2484.7,2484.4,0.12578207]
[1730596163882,2.39103604,2484.9,2484.5,0.12578207]
[1730596164083,2.39103604,2484.9,2484.6,0.12577876]
[1730596164389,6.41537604,2484.9,2484.5,0.8099]
[1730596164595,7.45933664,2484.9,2484.6,0.1257808]
[1730596164754,7.45933664,2484.9,2484.5,0.8099]
[1730596164958,7.45933664,2484.9,2484.6,0.12578122]
[1730596165182,7.45933664,2484.9,2484.5,0.8099]
[1730596165383,7.45933664,2484.9,2484.6,0.12577927]
[1730596165594,7.45933664,2484.9,2484.5,0.8099]
[1730596165902,7.45933664,2484.9,2484.6,0.1257798]
[1730596166123,2.67659664,2484.9,2484.5,0.8099]
[1730596166312,1.63263604,2484.9,2484.5,0.8099]
[1730596166591,1.63263604,2484.9,2484.6,0.12577756]
[1730596166757,1.63263604,2484.9,2484.7,0.12577756]
[1730596166957,1.63263604,2484.9,2484.5,0.8099]
[1730596167218,1.63263604,2484.9,2484.6,0.12577586]
[1730596167428,1.63263604,2484.9,2484.7,0.12577586]
[1730596167607,1.63263604,2484.9,2484.5,1.02564928]
[1730596167811,1.63263604,2484.9,2484.6,0.12577764]
[1730596168023,1.63263604,2484.9,2484.7,0.12577764]
[1730596168224,1.63263604,2484.9,2484.5,1.02564928]
[1730596168425,1.63263604,2484.9,2484.6,0.12577615]
[1730596168621,1.63263604,2484.9,2484.7,0.12577615]
[1730596168919,1.63263604,2484.9,2484.5,1.02564928]
[1730596169119,1.63263604,2484.9,2484.6,0.12577489]
[1730596169412,1.63263604,2484.9,2484.7,0.12577489]
[1730596169575,1.63263604,2484.9,2484.5,1.02564928]
[1730596170073,2.39103604,2484.7,2484.6,0.12577448]
[1730596170271,2.39103604,2484.7,2484.6,0.12578568]
[1730596170597,2.39103604,2484.7,2484.2,0.30109834]
[1730596170816,2.39103604,2484.7,2484.3,0.32704196]
[1730596170817,1.63263604,2484.5,2484.3,0.32704196]
[1730596170969,1.63263604,2484.5,2484.4,0.32704196]
[1730596172396,1.63263604,2484.5,2484.4,0.12578537]
[1730596172974,1.63263604,2484.5,2484.4,0.32703862]
[1730596173362,1.63263604,2484.5,2484.2,0.30115326]
[1730596173565,1.63263604,2484.5,2484.4,0.32703659]
[1730596173876,1.63263604,2484.7,2484.4,0.32703659]
[1730596174074,1.63263604,2484.7,2484.5,0.1257833]
[1730596174273,1.63263604,2484.7,2484.6,0.1257833]
[1730596174886,1.63263604,2484.9,2484.6,0.1257833]
[1730596175070,1.63263604,2484.9,2484.7,0.1257833]
[1730596175292,1.63263604,2484.9,2484.8,0.1257833]
[1730596177046,1.63263604,2484.9,2484.8,0.12577354]
[1730596178434,7.45926364,2484.9,2484.8,0.12577354]
[1730596178661,6.41533604,2484.9,2484.8,0.12577354]
[1730596178812,4.02463,2484.7,2484.3,0.2515644]
[1730596179140,1.63263604,2485.0,2484.4,0.32703875]
[1730596179141,1.63263604,2484.5,2484.4,0.32703875]
[1730596180558,1.63263604,2484.5,2484.4,0.32703725]
[1730596183265,7.38419764,2484.5,2484.4,0.32703725]
[1730596183499,7.38419764,2484.5,2484.4,0.12578356]
[1730596183500,6.41598604,2484.5,2484.4,0.12578356]
[1730596183984,6.41598604,2484.5,2484.1,0.30151111]
[1730596184267,1.63263604,2484.2,2484.1,0.25159914]
[1730596184424,1.63263604,2484.2,2484.1,0.62859484]
[1730596184624,5.65807604,2484.2,2484.1,0.62859484]
[1730596184940,4.78384,2484.2,2484.1,0.32708372]
[1730596185128,4.78384,2484.2,2484.1,0.12580143]
[1730596187502,4.78384,2484.2,2483.6,2.6968839]
[1730596187705,1.63263604,2484.1,2483.9,0.30131132]
[1730596187906,1.63263604,2484.1,2484.0,0.12580835]
[1730596190613,5.65823604,2484.1,2484.0,0.12580835]
[1730596191045,5.65823604,2484.1,2483.7,1.12273628]
[1730596191231,5.65823604,2484.1,2483.8,0.32711554]
[1730596191568,5.65823604,2484.1,2483.9,0.12581367]
[1730596191735,5.65823604,2484.1,2484.0,0.12581367]
[1730596192372,5.65823604,2484.1,2484.0,0.12581386]
[1730596192877,5.65823604,2484.1,2483.8,0.20130131]
[1730596193082,5.65823604,2484.1,2483.9,0.12581395]
[1730596193371,5.65823604,2484.1,2483.7,0.20130243]
[1730596193533,5.65823604,2484.1,2483.8,0.1258139]
[1730596193733,5.65823604,2484.1,2483.9,0.1258139]
[1730596194069,5.65823604,2484.1,2483.7,0.5357909]
[1730596194280,5.65823604,2484.1,2483.8,0.12581383]
[1730596194437,5.65823604,2484.1,2483.9,0.12581383]
[1730596194776,5.65823604,2484.1,2483.6,0.20130263]
[1730596194974,5.65823604,2484.1,2483.7,0.32711654]
[1730596195273,5.65823604,2484.1,2483.8,0.12581391]
[1730596195579,5.65823604,2484.1,2483.9,0.12581391]
[1730596195872,5.65823604,2484.1,2483.6,0.20130263]
[1730596196038,5.65823604,2484.1,2483.7,0.32711594]
[1730596196233,5.65823604,2484.1,2483.8,0.12581331]
[1730596196537,5.65823604,2484.1,2483.9,0.12581331]
[1730596196763,5.65823604,2484.1,2483.6,0.20130263]
[1730596196965,5.65823604,2484.1,2483.7,0.32711549]
[1730596197134,5.65823604,2484.1,2483.8,0.12581286]
[1730596197336,5.65823604,2484.1,2483.9,0.12581286]
[1730596197574,5.65823604,2484.1,2483.6,0.20130263]
[1730596197759,5.65823604,2484.1,2483.7,0.32711654]
[1730596198068,5.65823604,2484.1,2483.8,0.12581391]
[1730596198273,5.65823604,2484.1,2483.9,0.12581378]
[1730596198481,5.65823604,2484.1,2483.6,0.75130205]
[1730596198784,5.65823604,2484.1,2483.7,0.25162734]
[1730596198944,5.65823604,2484.1,2483.8,0.12581367]
[1730596199144,5.65823604,2484.1,2483.9,0.12581367]
[1730596199347,5.65823604,2484.1,2483.7,0.12581367]
[1730596199546,5.65823604,2484.1,2483.8,0.12581448]
[1730596199749,4.02576,2484.0,2483.9,0.12581448]
[1730596199957,5.65861604,2483.9,2483.7,0.12581367]
[1730596200139,5.65861604,2483.9,2483.8,0.12581493]
[1730596201188,5.65861604,2483.9,2483.7,0.12581367]
[1730596201368,5.65861604,2483.9,2483.8,0.12581749]
[1730596203142,5.65861604,2483.9,2483.5,0.20130799]
[1730596203348,5.65888604,2483.7,2483.6,0.1258269]
[1730596203666,5.65888604,2483.7,2483.0,1.25984258]
[1730596203667,4.02673,2483.4,2483.2,0.20130799]
[1730596203846,4.02673,2483.4,2483.3,0.1258402]
[1730596203847,5.65936604,2483.4,2483.3,0.1258402]
[1730596204054,5.65936604,2483.4,2483.3,0.1258406]
[1730596204854,5.65936604,2483.4,2482.9,0.30092648]
[1730596204855,4.02689,2483.3,2483.2,0.1258406]
[1730596205043,4.02689,2483.3,2482.8,0.20134497]
[1730596205044,4.02738,2483.0,2482.8,0.20134497]
[1730596205248,4.02738,2483.0,2482.9,0.12585864]
[1730596205546,4.02738,2483.0,2482.7,0.12585864]
[1730596205747,4.02738,2483.0,2482.6,0.051766]
[1730596205748,4.02738,2483.0,2482.8,0.12585864]
[1730596205969,4.02754,2482.9,2482.6,0.051766]
[1730596206170,4.02754,2482.9,2482.7,0.12586993]
[1730596206482,5.66017604,2482.9,2482.7,0.12586993]
[1730596207184,1.63263604,2482.9,2482.6,0.051766]
[1730596207383,4.02738,2483.0,2482.6,0.051766]
[1730596207562,4.02738,2483.0,2482.6,0.17763593]
[1730596207756,4.02738,2483.0,2482.6,0.051766]
[1730596209989,8.05487,2483.0,2482.6,0.051766]
[1730596210162,1.63263604,2482.9,2482.6,0.051766]
[1730596210482,5.65985604,2483.1,2482.6,0.051766]
[1730596211247,4.02739,2483.0,2482.6,0.051766]
[1730596211855,0.5659366,2483.3,2482.6,0.051766]
[1730596211856,1.63263604,2483.3,2482.6,0.051766]
[1730596212059,1.63263604,2483.3,2482.7,0.55]
[1730596212272,5.65955604,2483.3,2482.7,0.55]
[1730596212498,1.63263604,2483.3,2482.7,0.55]
[1730596213052,1.63263604,2483.5,2482.7,0.63054904]
[1730596214164,5.65920604,2483.5,2482.7,0.63054904]
[1730596214478,5.65920604,2483.5,2482.7,0.63054555]
[1730596214675,4.02675,2483.4,2482.7,0.55]
[1730596215394,1.63263604,2483.5,2482.7,0.55]
[1730596216158,5.65920604,2483.5,2482.7,0.55]
[1730596217794,1.63263604,2483.5,2482.7,0.55]
[1730596220354,4.02674,2483.4,2482.7,0.55]
[1730596220754,1.63263604,2483.5,2482.7,0.55]
[1730596220982,5.65930604,2483.5,2482.7,0.55]
[1730596221970,1.63263604,2483.3,2482.7,0.55]
[1730596224297,1.63263604,2483.3,2482.7,0.67585184]
[1730596225187,1.63263604,2483.3,2482.7,0.55]
[1730596225492,1.63263604,2483.3,2482.7,0.67585608]
[1730596226198,1.63263604,2483.3,2482.9,0.55]
[1730596226570,1.63263604,2483.3,2482.8,0.55]
[1730596226891,1.63263604,2483.3,2482.8,0.67585608]
[1730596227099,1.63263604,2483.3,2482.8,0.55]
[1730596227296,1.63263604,2483.3,2482.8,0.67585608]
[1730596227465,1.63263604,2483.3,2482.8,0.55]
[1730596227796,1.63263604,2483.3,2482.8,0.67585608]
[1730596227959,1.63263604,2483.3,2482.8,0.55]
[1730596228301,1.63263604,2483.3,2482.9,0.12585608]
[1730596229074,1.63263604,2483.3,2482.8,0.55]
[1730596229315,1.63263604,2483.3,2482.9,0.1258526]
[1730596229499,1.63263604,2483.3,2483.0,0.1258526]
[1730596229714,1.63263604,2483.3,2482.9,0.55]
[1730596230017,1.63263604,2483.3,2483.0,0.1258526]
[1730596230230,1.63263604,2483.3,2482.9,0.55]
[1730596230393,1.63263604,2483.3,2483.0,0.1258526]
[1730596230711,1.63263604,2483.3,2482.9,0.55]
[1730596231011,1.63263604,2483.3,2483.0,0.1258526]
[1730596231170,1.63263604,2483.3,2482.9,0.55]
[1730596231375,1.63263604,2483.3,2483.0,0.1258526]
[1730596231575,1.63263604,2483.3,2483.1,0.1258526]
[1730596231875,1.63263604,2483.3,2483.0,0.1258526]
[1730596232087,1.63263604,2483.3,2483.1,0.9188526]
[1730596232289,1.63263604,2483.3,2483.1,0.793]
[1730596232486,1.63263604,2483.3,2483.1,0.91885285]
[1730596232705,1.63263604,2483.3,2483.1,0.793]
[1730596232914,1.63263604,2483.3,2483.1,0.91885285]
[1730596233091,1.63263604,2483.3,2483.1,0.793]
[1730596233429,1.63263604,2483.3,2482.9,0.793]
[1730596233723,1.63263604,2483.1,2483.0,0.12585549]
[1730596234019,6.41204604,2483.3,2483.0,0.12585549]
[1730596234174,1.63263604,2483.1,2483.0,0.12585549]
[1730596235110,1.63263604,2483.1,2482.8,0.12585549]
[1730596235111,5.65985604,2483.1,2482.8,0.12585549]
[1730596235411,5.65985604,2483.1,2482.7,0.793]
[1730596235412,1.63263604,2483.1,2482.7,0.793]
[1730596235625,1.63263604,2483.1,2482.6,0.051766]
[1730596235626,5.66021604,2482.9,2482.8,0.1258682]
[1730596235925,5.66021604,2482.9,2482.6,0.051766]
[1730596236210,5.66021604,2482.9,2482.7,0.12587167]
[1730596236426,5.66021604,2482.9,2482.8,0.12587167]
[1730596236576,5.66021604,2482.9,2482.7,0.12587167]
[1730596236780,5.66021604,2482.9,2482.6,0.051766]
[1730596236781,5.66021604,2482.9,2482.8,0.12587167]
[1730596237496,4.02771,2482.8,2482.7,0.12587167]
[1730596237689,4.02771,2482.8,2482.7,0.12587093]
[1730596238316,9.68790604,2482.9,2482.7,0.12587093]
[1730596238613,5.66021604,2482.9,2482.8,0.12587093]
[1730596239322,4.02771,2482.8,2482.6,0.051766]
[1730596239820,5.66021604,2482.9,2482.7,0.12587392]
[1730596239976,9.68791604,2482.9,2482.8,0.12587392]
[1730596240611,5.66021604,2482.9,2482.8,0.12587392]
[1730596242001,1.63263604,2482.9,2482.8,0.12587392]
[1730596242375,4.77989,2483.0,2482.8,0.12587392]
[1730596242578,4.77989,2483.0,2482.9,0.12587392]
[1730596242813,4.02787,2482.7,2482.6,0.25316427]
[1730596243018,4.02787,2482.7,2482.6,0.17764792]
[1730596243019,5.66050604,2482.7,2482.6,0.17764792]
[1730596246518,5.66050604,2482.7,2482.6,0.051766]
[1730596246694,5.66050604,2482.7,2482.6,0.17764627]
[1730596247641,6.41570604,2482.7,2482.6,0.17764627]
[1730596247849,7.08118793,2482.7,2482.6,0.17764627]
[1730596249879,7.08118793,2482.7,2482.6,0.051766]
[1730596250169,7.08118793,2482.7,2482.6,0.17765575]
[1730596252746,7.08118793,2482.7,2482.6,0.051766]
[1730596252947,7.08118793,2482.7,2482.6,0.17765794]
[1730596253183,7.08118793,2482.7,2482.6,0.051766]
[1730596260297,10.08118793,2482.7,2482.6,0.051766]
[1730596260613,11.72382397,2482.7,2482.6,0.051766]
[1730596260763,10.09118793,2482.7,2482.6,0.051766]
[1730596261167,11.72382397,2482.7,2482.6,0.051766]
[1730596261368,10.09118793,2482.7,2482.6,0.051766]
[1730596262356,0.8246,2481.8,2481.2,0.84253673]
[1730596262547,1.63263604,2481.4,2481.0,1.0455216]
[1730596262704,1.63263604,2481.4,2481.1,0.69674494]
[1730596262900,1.63263604,2481.4,2480.8,0.65590184]
[1730596263139,1.63263604,2481.4,2480.9,0.69676904]
[1730596263733,1.63263604,2481.4,2481.0,0.55]
[1730596263929,1.63263604,2481.4,2480.9,0.55]
[1730596264251,1.63263604,2481.4,2481.0,0.69639244]
[1730596264407,1.63263604,2481.4,2480.9,0.55]
[1730596264609,1.63263604,2481.6,2481.1,0.55]
[1730596264918,4.02926,2481.9,2481.3,0.55]
[1730596265245,4.02926,2481.9,2481.4,0.7573]
[1730596265246,1.63263604,2481.8,2481.4,0.7573]
[1730596265607,1.63263604,2482.0,2481.4,0.7573]
[1730596265954,1.63263604,2482.0,2481.6,0.7573]
[1730596267790,1.63263604,2482.2,2481.6,0.7573]
[1730596268088,5.66133604,2482.2,2481.6,0.7573]
[1730596268444,1.63263604,2482.2,2481.6,0.7573]
[1730596269082,1.63263604,2482.2,2481.5,0.63058678]
[1730596269083,1.63263604,2482.2,2481.7,0.55]
[1730596269282,1.63263604,2482.2,2481.8,0.7573]
[1730596269860,5.66073604,2482.6,2482.0,0.7573]
[1730596270845,1.63263604,2482.6,2482.1,0.55]
[1730596271170,1.63263604,2482.6,2482.2,0.7573]
[1730596272996,1.63263604,2482.8,2482.2,0.7573]
[1730596273748,4.02751,2483.0,2482.2,0.7573]
[1730596273948,8.05501,2483.0,2482.2,0.7573]
[1730596274166,4.0275,2483.0,2482.2,0.7573]
[1730596274464,4.0275,2483.0,2482.4,0.7573]
[1730596274975,7.82383151,2483.4,2482.6,0.7573]
[1730596275297,4.02689,2483.3,2482.6,0.7573]
[1730596275858,4.02689,2483.3,2482.6,0.88317332]
[1730596276058,4.02752,2483.0,2482.6,0.7573]
[1730596276275,4.02751,2483.0,2482.6,0.7573]
[1730596276767,4.02765,2482.9,2482.3,0.7684]
[1730596276974,7.82472151,2482.8,2482.3,0.89427332]
[1730596277155,4.02788,2482.7,2482.3,0.7684]
[1730596278600,4.02788,2482.7,2482.3,0.89427332]
[1730596278897,0.7648,2482.8,2482.3,0.7684]
[1730596279111,4.79256,2482.8,2482.3,0.7684]
[1730596279305,4.02776,2482.8,2482.3,0.7684]
[1730596279507,4.02776,2482.8,2482.3,0.89427332]
[1730596279669,4.02776,2482.8,2482.3,0.7684]
[1730596280399,4.02776,2482.8,2482.4,0.12588163]
[1730596281274,4.02766,2482.9,2482.4,0.12588163]
[1730596281479,4.02766,2482.9,2482.5,0.12587559]
[1730596281678,4.02766,2482.9,2482.1,0.20141062]
[1730596281679,4.02766,2482.9,2482.6,0.7684]
[1730596281982,8.05537,2482.9,2482.6,0.7684]
[1730596283881,8.05537,2482.9,2482.6,0.89427502]
[1730596284097,8.05537,2482.9,2482.6,0.7684]
[1730596284406,4.02766,2482.9,2482.6,0.7684]
[1730596284779,4.02766,2482.9,2482.6,0.89427502]
[1730596284976,7.82431151,2483.1,2482.6,0.7684]
[1730596285182,4.02717,2483.2,2482.6,0.7684]
[1730596285423,4.02722,2483.1,2482.6,0.7684]
[1730596285630,4.02722,2483.1,2482.7,0.12586861]
[1730596286131,4.027,2483.3,2482.7,0.12587398]
[1730596286132,4.02709,2483.2,2482.7,0.12587398]
[1730596286284,4.0269,2483.3,2482.8,0.7684]
[1730596287495,4.0269,2483.3,2482.9,0.1258569]
[1730596287827,8.0534,2483.5,2482.9,0.7684]
[1730596288031,4.0267,2483.5,2482.9,0.7684]
[1730596288187,4.02668,2483.5,2483.1,0.7684]
[1730596288606,4.02681,2483.4,2483.1,0.7684]
[1730596288943,4.02697,2483.3,2483.1,0.7684]
[1730596289090,4.02697,2483.3,2482.9,0.7684]
[1730596291295,4.02681,2483.4,2482.9,0.7684]
[1730596291735,8.05366,2483.4,2482.9,0.7684]
[1730596291938,4.02693,2483.3,2482.9,0.7684]
[1730596292609,4.908784,2483.3,2482.9,0.7684]
[1730596292808,4.02729,2483.1,2482.9,0.7684]
[1730596293009,8.05459,2483.1,2482.7,0.7684]
[1730596293220,4.02729,2483.1,2482.7,0.7684]
[1730596293419,4.02729,2483.1,2482.7,0.89425369]
[1730596293636,4.02729,2483.1,2482.7,0.7684]
[1730596294296,4.02729,2483.1,2482.7,0.89426375]
[1730596294733,4.02729,2483.1,2482.7,0.7684]
[1730596294933,4.02729,2483.1,2482.7,0.89426375]
[1730596295113,4.02729,2483.1,2482.7,0.7684]
[1730596295313,4.02729,2483.1,2482.7,0.89426375]
[1730596295610,4.02729,2483.1,2482.7,0.7684]
[1730596295823,4.02729,2483.1,2482.7,0.89426375]
[1730596296036,4.02729,2483.1,2482.7,0.7684]
[1730596296344,4.02729,2483.1,2482.7,0.89426375]
[1730596296501,4.02729,2483.1,2482.7,0.7684]
[1730596296700,4.02729,2483.1,2482.7,0.89426375]
[1730596296940,4.02729,2483.1,2482.7,0.7684]
[1730596300336,4.909197,2483.1,2482.7,0.7684]
[1730596301765,4.909197,2483.1,2482.5,0.7684]
[1730596301766,4.02746,2483.0,2482.5,0.7684]
[1730596303028,0.7648,2482.9,2482.5,0.7684]
[1730596303358,0.7648,2482.9,2482.3,0.89426408]
[1730596303689,0.7648,2482.9,2482.4,0.12586408]
[1730596303890,0.7648,2482.9,2482.3,0.7684]
[1730596303891,4.79236,2482.9,2482.3,0.7684]
[1730596304382,4.79236,2482.9,2482.3,0.89426408]
[1730596304685,4.79236,2482.9,2482.3,0.7684]
[1730596304867,0.7648,2482.9,2482.3,0.7684]
[1730596305071,4.02771,2482.8,2482.3,0.89426408]
[1730596305266,4.02771,2482.8,2482.3,0.7684]
[1730596305878,4.02771,2482.8,2482.3,0.89426408]
[1730596306064,4.02771,2482.8,2482.3,0.7684]
[1730596306585,4.02771,2482.8,2482.3,0.89426408]
[1730596306758,4.02771,2482.8,2482.3,0.7684]
[1730596307442,5.00623926,2482.8,2482.3,0.89426408]
[1730596307596,0.7623,2482.6,2482.1,0.89476408]
[1730596307883,0.7623,2482.6,2482.2,0.67586408]
[1730596308083,0.7623,2482.6,2482.3,0.12586408]
[1730596309197,0.7623,2482.6,2482.4,0.12586408]
[1730596309361,0.7623,2482.6,2482.3,0.12586408]
[1730596309563,0.7623,2482.6,2482.4,0.12586408]
[1730596309890,0.7623,2482.6,2482.3,0.12586408]
[1730596310061,0.7623,2482.6,2482.4,0.12586408]
[1730596310263,0.7623,2482.6,2482.5,0.12586408]
[1730596311776,0.7623,2482.6,2482.3,0.20140821]
[1730596311978,0.7623,2482.6,2482.4,0.12588013]
[1730596312190,0.7623,2482.6,2482.5,0.12588013]
[1730596312579,5.52126923,2482.6,2482.5,0.12588013]
[1730596314507,1.49323923,2482.6,2482.5,0.12588013]
[1730596314807,0.7623,2482.6,2482.5,0.12588013]
[1730596315307,0.7623,2482.6,2482.5,0.32729293]
[1730596316009,0.7623,2482.8,2482.5,0.12588308]
[1730596316301,4.79004,2482.8,2482.6,0.12588308]
[1730596316517,4.79004,2482.8,2482.7,0.12588308]
[1730596316676,5.83532453,2482.8,2482.7,0.12588308]
[1730596318809,5.83532453,2482.8,2482.4,0.7689]
[1730596319113,4.02789,2482.7,2482.5,0.32729402]
[1730596319266,4.02789,2482.7,2482.6,0.12588293]
[1730596320167,5.83532453,2482.8,2482.6,0.12588293]
[1730596320414,5.83532453,2482.8,2482.7,0.12588293]
[1730596322464,5.07302453,2482.8,2482.7,0.12588293]
[1730596324502,5.88092453,2482.8,2482.7,0.12588293]
[1730596324807,4.02807,2482.6,2482.4,0.20141093]
[1730596324975,4.02807,2482.6,2482.5,0.32729349]
[1730596325987,4.83597,2482.6,2482.5,0.32729349]
[1730596326214,5.50015396,2482.6,2482.5,0.32729349]
[1730596328390,5.4989322,2482.6,2482.5,0.32729349]
[1730596328899,4.83474824,2482.6,2482.5,0.32729349]
[1730596331485,4.02684824,2482.6,2482.5,0.32729349]
[1730596331698,4.02684824,2482.6,2482.3,0.7622]
[1730596331887,4.02684824,2482.6,2482.5,0.32729633]
[1730596333193,4.02684824,2482.6,2482.5,0.32729883]
[1730596333394,4.02684824,2482.6,2482.5,0.12588416]
[1730596334012,4.02684824,2482.6,2482.5,0.3272992]
[1730596335707,4.02684824,2482.6,2482.5,0.32729916]
[1730596338742,4.0279,2482.7,2482.3,0.7622]
[1730596338906,4.02819,2482.5,2482.4,0.62883812]
[1730596339530,4.02819,2482.5,2482.4,0.88060665]
[1730596340031,4.02819,2482.5,2482.4,0.62883812]
[1730596340217,4.02819,2482.5,2482.4,0.88060665]
[1730596340701,4.02819,2482.5,2482.4,0.62883812]
[1730596341030,4.02819,2482.5,2482.4,0.88060665]
[1730596341234,4.02819,2482.5,2482.4,0.62883812]
[1730596341437,4.02819,2482.5,2482.4,1.57896866]
[1730596341739,4.02819,2482.5,2482.4,1.32720013]
[1730596341939,4.02819,2482.5,2482.4,0.88060665]
[1730596342453,4.02819,2482.5,2482.4,1.57910659]
[1730596342608,4.02819,2482.5,2482.4,0.88073281]
[1730596342609,5.604515,2482.5,2482.4,0.88073281]
[1730596342939,5.604515,2482.5,2482.4,0.62895857]
[1730596343139,5.604515,2482.5,2482.4,0.88073281]
[1730596343299,5.604515,2482.5,2482.4,0.62895857]
[1730596343502,5.604515,2482.5,2482.4,0.88073281]
[1730596343799,5.604515,2482.5,2482.4,0.62895857]
[1730596344000,5.604515,2482.5,2482.4,0.88073281]
[1730596344200,4.02819,2482.5,2482.4,0.88073281]
[1730596344556,4.02819,2482.5,2482.4,1.57940357]
[1730596346455,4.02819,2482.5,2482.4,1.57942229]
[1730596347820,4.02819,2482.5,2482.4,2.62828618]
[1730596348023,4.02819,2482.5,2482.4,1.57976539]
[1730596348468,4.02819,2482.5,2482.4,2.62828927]
[1730596349362,0.7707,2482.7,2482.4,3.44828927]
[1730596349363,4.02794,2482.7,2482.4,3.44828927]
[1730596349568,4.02794,2482.7,2482.5,1.99930763]
[1730596349861,4.02794,2482.7,2482.4,1.66126894]
[1730596349862,4.02794,2482.7,2482.6,0.88102585]
[1730596351131,0.7707,2482.9,2482.6,2.62893269]
[1730596351132,4.02756,2482.9,2482.6,2.62893269]
[1730596351334,4.02773,2482.8,2482.7,0.88102585]
[1730596352260,4.02773,2482.8,2482.7,0.32730085]
[1730596352261,7.40264078,2482.8,2482.7,0.32730085]
[1730596352649,5.76747553,2482.8,2482.7,0.32730085]
[1730596353157,5.76747553,2482.8,2482.3,1.04886598]
[1730596353359,8.05684,2482.4,2482.2,0.96093983]
[1730596353566,8.05684,2482.4,2482.3,2.32721106]
[1730596353763,8.05684,2482.4,2482.3,2.6292032]
[1730596354085,8.05684,2482.4,2482.3,1.58034343]
[1730596354445,8.05684,2482.4,2482.3,2.6291201]
[1730596354686,8.05684,2482.4,2482.3,1.58034343]
[1730596354853,8.05684,2482.4,2482.3,2.6291201]
[1730596355053,8.05684,2482.4,2482.3,1.58034343]
[1730596355255,8.05684,2482.4,2482.3,0.88110358]
[1730596356847,8.05684,2482.4,2482.3,0.30199214]
[1730596357047,4.02879,2482.2,2482.1,1.04864279]
[1730596357243,4.02879,2482.2,2482.1,2.628819]
[1730596357489,4.02879,2482.2,2482.1,1.58017621]
[1730596357687,4.02879,2482.2,2482.1,2.628819]
[1730596358252,4.02842,2482.4,2482.1,2.628819]
[1730596358448,4.02842,2482.4,2482.2,0.88108097]
[1730596358647,4.02842,2482.4,2482.3,0.62927444]
[1730596358875,4.02842,2482.4,2482.3,0.88107122]
[1730596359464,4.02842,2482.4,2482.3,0.62927444]
[1730596360896,4.02842,2482.4,2482.3,0.6291541]
[1730596361094,4.02842,2482.4,2482.3,0.32734848]
[1730596361393,4.02842,2482.4,2482.3,0.62915385]
[1730596361691,5.76829852,2482.4,2482.3,0.62913906]
[1730596364255,4.79912,2482.4,2482.3,0.62913906]
[1730596364512,4.79912,2482.4,2482.3,0.32734848]
[1730596364655,4.79912,2482.4,2482.3,0.32734804]
[1730596367498,4.79912,2482.4,2482.3,0.12590309]
[1730596368077,4.79912,2482.4,2482.3,0.32735623]
[1730596368477,4.79912,2482.4,2481.9,1.88942291]
[1730596368478,4.02881,2482.2,2481.9,1.88942291]
[1730596368672,4.02881,2482.2,2482.1,0.30170022]
[1730596368900,4.02881,2482.2,2481.9,1.88942291]
[1730596369106,4.02881,2482.2,2482.1,0.62906044]
[1730596369294,4.02881,2482.2,2482.1,0.8808786]
[1730596369505,4.02881,2482.2,2482.1,0.62906044]
[1730596371308,4.02881,2482.2,2482.1,0.88087784]
[1730596371514,4.02881,2482.2,2482.1,0.62906044]
[1730596371899,4.02881,2482.2,2482.1,0.88087771]
[1730596372102,4.02881,2482.2,2482.1,0.62906044]
[1730596372310,4.02881,2482.2,2481.8,2.67237795]
[1730596372487,4.02881,2482.2,2482.1,0.30166275]
[1730596372687,4.02881,2482.2,2482.1,0.62902543]
[1730596373027,4.02854,2482.3,2482.1,0.62902543]
[1730596373186,4.02854,2482.3,2481.9,0.251817]
[1730596373187,4.02854,2482.3,2482.2,0.32736268]
[1730596373387,4.02854,2482.3,2482.2,0.62899667]
[1730596373994,5.66346525,2482.5,2482.2,0.62899667]
[1730596374331,5.66346525,2482.5,2482.3,0.32736268]
[1730596374531,5.66346525,2482.5,2482.4,0.32736268]
[1730596375488,5.66346525,2482.5,2482.4,0.32735288]
[1730596375940,5.66346525,2482.5,2482.3,0.30163646]
[1730596376129,4.02842,2482.4,2482.1,0.7834]
[1730596376332,4.02842,2482.4,2482.2,0.67935737]
[1730596376490,4.02842,2482.4,2482.3,0.3273456]
[1730596376690,4.02842,2482.4,2482.3,0.62898456]
[1730596378393,4.02842,2482.4,2482.3,0.3273456]
[1730596379258,4.02842,2482.4,2482.3,0.62900718]
[1730596380332,4.02842,2482.4,2482.3,0.62900643]
[1730596381363,9.69176525,2482.5,2482.3,0.62900643]
[1730596381671,5.66346525,2482.5,2482.4,0.32734485]
[1730596381962,5.66346525,2482.5,2482.4,0.12590186]
[1730596382606,5.66346525,2482.5,2482.4,0.32734943]